bitfinex-derivatives/quotes_ETHF0:USTF0_20250428
["timestamp","ask_amount","ask_price","bid_price","bid_amount"]
[1745854533455,1.13848,1756.1,1756.0,3.10801]
[1745854533653,4.79352502,1756.1,1756.0,3.10801]
[1745854533852,4.79352502,1756.1,1756.0,41.93851]
[1745854534055,3.65504502,1756.1,1756.0,41.93851]
[1745854534651,5.52314502,1756.1,1755.7,8.2728]
[1745854534956,1.58580502,1756.0,1755.9,1.13861]
[1745854535158,0.43453986,1756.0,1755.9,41.93861]
[1745854535352,1.57308986,1756.0,1755.9,1.13861]
[1745854535650,0.43453986,1756.0,1755.9,1.13861]
[1745854535842,6.28785,1756.3,1756.2,1.13842]
[1745854536049,5.1495,1756.3,1756.2,1.13842]
[1745854536351,1.13842,1756.2,1756.1,1.13843]
[1745854536550,1.13848,1756.1,1756.0,3.8822]
[1745854536750,1.13865,1755.9,1755.5,0.1097]
[1745854536947,3.2078,1755.8,1755.7,1.13874]
[1745854537655,1.13874,1755.7,1755.6,1.9383]
[1745854537866,5.1495,1755.8,1755.3,0.1098]
[1745854538159,3.2078,1755.6,1755.5,1.9383]
[1745854538451,3.2078,1755.6,1755.2,1.9508]
[1745854538452,3.2078,1755.6,1755.2,3.08981]
[1745854538655,4.34676,1755.4,1755.3,1.9383]
[1745854539157,4.34674,1755.4,1755.3,3.0773]
[1745854539357,4.34674,1755.4,1755.3,1.9383]
[1745854539654,1.13904,1755.3,1755.1,10.2167]
[1745854539855,3.15654,1755.3,1755.2,1.13907]
[1745854540056,3.15652,1755.3,1755.1,5.0125]
[1745854540351,3.2078,1755.2,1755.1,5.0125]
[1745854541262,5.2253,1755.2,1755.1,5.0125]
[1745854541454,3.2078,1755.4,1755.1,3.8734]
[1745854541654,3.2078,1755.4,1755.3,1.139]
[1745854542261,5.2416,1755.4,1755.3,1.139]
[1745854542759,6.38054,1755.4,1755.2,3.06853]
[1745854543160,1.139,1755.3,1755.2,3.06853]
[1745854543358,2.0338,1755.3,1755.2,3.06853]
[1745854543557,3.2078,1755.4,1755.3,1.139]
[1745854543858,2.84671,1755.8,1755.5,1.13881]
[1745854543859,3.2078,1755.6,1755.5,1.13881]
[1745854544261,4.34639,1756.0,1755.8,1.13866]
[1745854544463,3.2078,1756.0,1755.9,1.13861]
[1745854544762,1.13844,1756.2,1755.8,7.91357]
[1745854545060,1.9104,1756.2,1755.8,7.0934]
[1745854545361,4.3463,1756.1,1756.0,1.13855]
[1745854545661,4.34632,1756.1,1755.9,3.16497]
[1745854545861,4.34632,1756.1,1755.9,2.0264]
[1745854545862,3.2078,1756.1,1755.9,2.0264]
[1745854546061,1.9104,1756.0,1755.6,1.9786]
[1745854546264,1.13874,1755.7,1755.6,1.9786]
[1745854546461,3.2078,1755.8,1755.4,7.0934]
[1745854546761,3.2078,1755.6,1755.5,1.13887]
[1745854546965,5.47656787,1756.4,1756.2,1.13842]
[1745854547150,4.10150512,1756.3,1756.2,1.13842]
[1745854547465,4.10150512,1756.3,1756.0,3.9469]
[1745854547466,1.13845,1756.2,1756.0,3.9469]
[1745854547664,0.45045987,1756.1,1756.0,5.08542]
[1745854548362,5.67414366,1756.4,1756.0,3.9469]
[1745854548551,3.2078,1756.4,1756.2,1.13842]
[1745854548859,3.2078,1756.4,1756.3,3.02465]
[1745854549057,3.65104525,1756.6,1756.5,1.13822]
[1745854549858,3.65104525,1756.6,1756.5,41.93822]
[1745854550255,3.65104525,1756.6,1756.5,40.8]
[1745854550464,3.65104525,1756.6,1756.5,47.00522]
[1745854551362,3.2078,1756.9,1756.5,45.867]
[1745854551559,3.2078,1756.9,1756.8,1.13803]
[1745854551758,4.34581,1756.9,1756.7,1.13808]
[1745854551964,5.0796,1756.9,1756.6,1.9926]
[1745854552265,1.13803,1756.8,1756.6,1.13816]
[1745854552461,1.8718,1756.8,1756.6,3.13076]
[1745854552662,3.00984,1756.8,1756.6,3.13076]
[1745854552854,3.2078,1756.9,1756.6,1.9926]
[1745854553161,3.2078,1757.1,1757.0,1.1379]
[1745854553359,4.34564,1757.1,1757.0,1.1379]
[1745854553665,3.2078,1757.1,1756.8,5.004]
[1745854553862,3.2078,1757.1,1757.0,1.1379]
[1745854554065,5.1313,1757.1,1757.0,0.7464]
[1745854554363,3.2078,1757.1,1757.0,0.7464]
[1745854556264,4.34564,1757.1,1756.9,3.13052]
[1745854556468,6.26914,1757.1,1757.0,1.1379]
[1745854556763,5.1313,1757.1,1757.0,3.0956]
[1745854556958,4.34564,1757.1,1757.0,1.9577]
[1745854557363,1.1379,1757.0,1756.8,6.14201]
[1745854557565,1.8954,1756.9,1756.8,6.14201]
[1745854558370,3.65104525,1757.2,1757.1,1.13784]
[1745854559265,3.65104525,1757.2,1757.1,3.03344]
[1745854559564,3.65104525,1757.2,1757.1,8.03344]
[1745854559959,1.8954,1757.5,1757.3,1.13771]
[1745854560265,10.5098905,1757.6,1757.3,6.14071]
[1745854560665,7.3020905,1757.4,1757.3,8.05281]
[1745854560967,2.89205683,1757.4,1757.3,8.05281]
[1745854561473,4.02969683,1757.4,1757.3,6.9151]
[1745854561664,4.75875683,1757.4,1757.3,8.05281]
[1745854561857,2.89205683,1757.4,1757.3,8.05281]
[1745854562056,2.89205683,1757.4,1757.3,11.26061]
[1745854562854,4.02969683,1757.4,1757.3,6.9151]
[1745854563054,5.89639683,1757.4,1757.3,5.003]
[1745854563254,1.13771,1757.3,1757.2,0.1098]
[1745854563462,6.31101,1757.3,1757.2,0.1098]
[1745854563860,12.19901,1757.3,1757.2,0.1098]
[1745854564463,2.84444,1757.2,1756.9,5.002]
[1745854564659,1.1379,1757.0,1756.9,6.13994]
[1745854564969,3.10339,1757.1,1756.9,5.002]
[1745854565361,3.10339,1757.1,1757.0,1.1379]
[1745854565562,1.13788,1757.1,1756.9,5.002]
[1745854565757,3.10331,1757.2,1757.0,1.1379]
[1745854566062,3.2078,1757.1,1756.9,5.002]
[1745854566369,1.13809,1756.7,1756.6,1.8957]
[1745854566669,1.13816,1756.6,1756.5,5.002]
[1745854566870,3.02856,1756.6,1756.5,5.002]
[1745854567067,1.13824,1756.5,1756.4,1.13827]
[1745854567268,5.0982,1756.5,1756.2,2.0309]
[1745854567466,1.13829,1756.4,1756.3,1.13835]
[1745854567671,3.02869,1756.4,1756.3,40.8]
[1745854567871,3.02869,1756.4,1756.3,41.93835]
[1745854568071,3.02869,1756.4,1756.3,40.8]
[1745854568772,1.8904,1756.4,1756.3,41.93835]
[1745854568969,3.2078,1756.5,1756.4,1.13829]
[1745854569169,3.2078,1756.9,1756.4,1.9268]
[1745854569376,3.2078,1757.2,1757.1,1.13778]
[1745854569676,1.9592,1757.4,1757.3,1.13771]
[1745854569869,3.2078,1757.7,1757.3,6.14069]
[1745854570072,2.84411,1757.4,1757.0,4.0204]
[1745854570278,3.2078,1757.1,1756.8,5.003]
[1745854570470,5.1701,1757.3,1757.0,1.1379]
[1745854570772,1.9592,1757.2,1756.9,42.7992]
[1745854570971,1.13784,1757.1,1756.9,42.7992]
[1745854571173,3.09699,1757.2,1757.1,1.13784]
[1745854571366,1.9592,1757.2,1757.1,1.13784]
[1745854571773,9.12761312,1757.3,1757.2,1.13777]
[1745854571973,9.12761312,1757.3,1757.2,6.13977]
[1745854572164,9.01781311,1757.3,1757.2,14.34757]
[1745854572368,9.01781311,1757.3,1757.2,5.002]
[1745854572563,9.01781311,1757.3,1757.2,6.13977]
[1745854572975,9.01781311,1757.3,1757.2,11.13977]
[1745854573176,9.01781311,1757.3,1757.2,6.13977]
[1745854573574,9.01781311,1757.3,1757.2,11.13977]
[1745854573974,1.13753,1757.6,1757.2,10.002]
[1745854574283,3.2078,1757.5,1757.2,5.002]
[1745854574483,5.111,1757.5,1757.2,5.002]
[1745854574776,6.2486,1757.5,1757.3,6.13968]
[1745854575282,3.2078,1757.5,1757.4,1.13764]
[1745854575577,3.65291014,1757.5,1757.4,1.13764]
[1745854575777,0.44511014,1757.5,1757.4,1.13764]
[1745854575979,1.953,1757.6,1757.5,1.13758]
[1745854576177,5.46167527,1757.7,1757.6,1.13751]
[1745854576574,3.2078,1758.0,1757.4,3.2078]
[1745854576880,0.44564378,1757.9,1757.8,1.13733]
[1745854577079,0.44564378,1757.9,1757.8,6.13933]
[1745854577578,5.1608,1758.0,1757.9,1.13732]
[1745854577884,0.44560286,1758.0,1757.9,1.13732]
[1745854578178,4.30425527,1758.1,1758.0,1.13725]
[1745854578375,3.2078,1758.7,1758.6,1.13687]
[1745854578681,3.65358179,1758.7,1758.6,45.801]
[1745854578983,3.65358179,1758.7,1758.6,46.93787]
[1745854579175,3.2078,1758.7,1758.6,46.93787]
[1745854579779,1.8909,1758.9,1758.8,1.13674]
[1745854579980,2.32892775,1758.9,1758.7,1.13675]
[1745854580176,1.8909,1758.9,1758.8,1.13674]
[1745854580375,6.2647,1759.2,1759.0,1.1366]
[1745854580683,3.46488341,1759.1,1759.0,5.001]
[1745854581184,3.2078,1759.2,1759.0,5.001]
[1745854581374,3.2078,1759.2,1759.1,1.13654]
[1745854582474,3.2078,1759.2,1759.0,6.13759]
[1745854582675,3.2078,1759.2,1759.1,1.13654]
[1745854582871,3.2078,1759.2,1759.0,6.13758]
[1745854583375,3.2078,1759.6,1759.0,5.001]
[1745854583579,3.13568,1759.5,1759.2,1.13642]
[1745854583775,1.9994,1759.5,1759.3,1.13639]
[1745854583972,1.9994,1759.5,1759.4,4.956]
[1745854584372,3.13568,1759.5,1759.4,4.956]
[1745854584578,1.13654,1759.1,1759.0,4.956]
[1745854584885,5.1466,1759.4,1759.2,1.13647]
[1745854585078,1.9844,1759.3,1759.2,6.09247]
[1745854585279,4.34406,1759.6,1759.2,4.956]
[1745854585588,8.03262,1759.7,1759.2,6.09248]
[1745854585790,3.2078,1759.7,1759.2,4.956]
[1745854586088,1.9844,1759.6,1759.4,1.13633]
[1745854586282,3.2078,1759.7,1759.5,1.13628]
[1745854586483,6.32836,1759.7,1759.6,4.955]
[1745854586680,6.32835,1759.7,1759.6,4.955]
[1745854587389,1.1364,1759.4,1759.2,1.13642]
[1745854587693,1.9585,1759.3,1759.2,1.13642]
[1745854587987,3.09491,1759.3,1759.2,4.955]
[1745854588189,1.9585,1759.3,1759.2,4.955]
[1745854588387,3.09491,1759.3,1759.2,4.955]
[1745854588584,1.13649,1759.2,1758.9,4.955]
[1745854588884,3.2078,1759.2,1759.1,1.13654]
[1745854589087,3.2078,1759.4,1758.9,12.79668]
[1745854589285,2.84041,1759.7,1759.0,3.2078]
[1745854589286,3.2078,1759.6,1759.0,3.2078]
[1745854589589,3.2078,1759.6,1759.5,1.13624]
[1745854589787,3.2078,1759.6,1759.5,6.09028]
[1745854589987,6.30252,1759.6,1759.5,6.09028]
[1745854590187,6.30252,1759.6,1759.5,4.954]
[1745854590491,1.13639,1759.4,1759.2,1.13645]
[1745854590688,1.13631,1759.5,1759.3,1.13641]
[1745854590985,4.34412,1759.5,1759.3,1.13641]
[1745854591179,1.13638,1759.4,1759.0,7.79552]
[1745854591384,1.895,1759.4,1759.3,1.13639]
[1745854591584,3.2078,1759.5,1759.4,1.13635]
[1745854591784,3.2078,1759.5,1759.4,6.09035]
[1745854591990,4.34408,1759.5,1759.4,4.954]
[1745854592192,3.03128,1759.5,1759.4,6.09035]
[1745854592389,3.2078,1759.8,1759.4,4.954]
[1745854592692,5.1028,1759.8,1759.5,1.13627]
[1745854592888,5.1028,1759.8,1759.4,0.57446957]
[1745854593087,5.1028,1759.8,1759.5,2.0507]
[1745854593292,6.23891,1759.8,1759.7,1.13615]
[1745854593593,3.2078,1759.8,1759.7,1.13615]
[1745854594192,3.2078,1759.8,1759.7,41.93615]
[1745854594387,3.2078,1760.0,1759.7,46.93615]
[1745854594591,3.2078,1760.0,1759.9,1.13603]
[1745854594991,3.2078,1760.0,1759.8,4.954]
[1745854595190,2.0718,1760.3,1759.9,2.0355]
[1745854595491,2.0718,1760.3,1760.0,1.13595]
[1745854595691,1.1359,1760.1,1760.0,1.13595]
[1745854595891,1.1359,1760.1,1760.0,6.08895]
[1745854596092,1.13589,1760.2,1760.0,4.953]
[1745854596291,1.13589,1760.2,1760.1,2.0355]
[1745854596497,2.0718,1760.3,1760.0,4.953]
[1745854596797,3.2019,1760.1,1760.0,4.953]
[1745854596995,2.066,1760.1,1760.0,6.08896]
[1745854597196,3.2019,1760.1,1760.0,4.953]
[1745854597995,1.13582,1760.3,1760.1,1.13587]
[1745854598199,1.13582,1760.3,1760.2,3.12503]
[1745854598496,3.20182,1760.3,1760.2,1.9892]
[1745854598796,1.1359,1760.1,1760.0,9.29675]
[1745854598994,1.1359,1760.1,1760.0,8.1608]
[1745854599503,2.066,1760.3,1760.2,1.13583]
[1745854599796,3.20178,1760.3,1760.2,1.13583]
[1745854599997,1.916,1760.5,1760.2,1.13583]
[1745854600198,1.9849,1760.5,1760.3,1.13577]
[1745854600385,3.12059,1760.5,1760.4,6.9727]
[1745854600997,4.34342,1760.6,1760.4,8.1084]
[1745854601192,3.2078,1760.6,1760.4,8.1084]
[1745854601490,1.9849,1760.7,1760.4,6.9727]
[1745854601696,1.13564,1760.5,1760.4,8.1084]
[1745854601888,1.13563,1760.6,1760.4,8.1084]
[1745854602093,3.1205,1760.6,1760.5,1.13564]
[1745854602291,3.1205,1760.6,1760.5,2.0207]
[1745854602496,3.1205,1760.6,1760.5,6.9717]
[1745854602699,3.1205,1760.6,1760.5,8.10734]
[1745854602894,8.0448,1760.9,1760.6,1.13556]
[1745854602895,1.13554,1760.7,1760.6,1.13556]
[1745854603097,3.19477,1760.8,1760.7,1.13551]
[1745854603293,1.13551,1760.7,1760.5,11.31509]
[1745854603488,2.0593,1760.7,1760.6,40.8]
[1745854603694,3.19484,1760.7,1760.6,40.8]
[1745854603899,3.19484,1760.7,1760.6,45.751]
[1745854604099,3.19484,1760.7,1760.6,46.88657]
[1745854604301,1.13554,1760.7,1760.6,45.751]
[1745854604494,1.1355,1760.8,1760.6,46.88657]
[1745854604797,3.2078,1760.9,1760.7,1.13551]
[1745854605095,1.13535,1761.0,1760.8,1.1354]
[1745854605299,2.0593,1761.0,1760.9,3.12778]
[1745854605495,3.2078,1761.1,1760.9,3.12778]
[1745854605701,1.13525,1761.1,1761.0,4.951]
[1745854605893,1.13525,1761.1,1761.0,6.9107]
[1745854606199,1.57070861,1761.1,1761.0,4.951]
[1745854606394,1.13544,1760.8,1760.7,5.1675]
[1745854606598,4.7287,1761.0,1760.7,11.25398]
[1745854606901,1.13543,1760.9,1760.8,1.13544]
[1745854607101,3.46148685,1760.9,1760.8,6.08644]
[1745854607294,1.13526,1761.1,1760.9,1.13538]
[1745854607497,1.1353,1761.1,1761.0,1.13532]
[1745854607696,3.46139311,1761.1,1761.0,1.13532]
[1745854608004,1.13536,1761.0,1760.8,6.0864]
[1745854608198,1.8904,1761.0,1760.8,6.0864]
[1745854608398,1.13538,1760.9,1760.8,4.951]
[1745854608596,1.8904,1761.0,1760.8,4.951]
[1745854608795,1.13538,1760.9,1760.8,4.951]
[1745854608997,1.13544,1760.8,1760.7,4.95]
[1745854609302,0.4359286,1760.8,1760.7,6.08551]
[1745854609505,1.1354,1760.9,1760.8,1.13544]
[1745854609708,0.43607652,1760.9,1760.8,1.13544]
[1745854609895,3.17579,1761.1,1760.7,10.99649]
[1745854610098,0.43612627,1761.0,1760.9,1.13533]
[1745854610395,1.13522,1761.2,1760.9,3.2078]
[1745854610602,5.2483,1761.3,1761.1,1.13525]
[1745854610900,6.38347,1761.3,1761.0,2.0421]
[1745854611102,1.13525,1761.1,1761.0,3.17742]
[1745854611307,1.13524,1761.2,1761.0,8.12637]
[1745854611604,1.13524,1761.2,1761.1,1.13525]
[1745854611605,2.0405,1761.2,1761.1,1.13525]
[1745854611801,4.34297,1761.3,1761.2,1.13519]
[1745854612101,1.13516,1761.3,1761.1,1.1352]
[1745854612293,4.82358,1761.4,1761.0,4.949]
[1745854612493,1.13519,1761.2,1761.1,1.13522]
[1745854613098,4.82358,1761.4,1761.1,5.96422]
[1745854613099,1.13516,1761.3,1761.1,5.96422]
[1745854613299,3.12106,1761.3,1761.1,5.96422]
[1745854613502,3.12106,1761.3,1761.1,5.9642]
[1745854613700,3.12106,1761.3,1761.2,1.13519]
[1745854613905,2.4217535,1761.3,1761.1,4.829]
[1745854614097,1.13501,1761.5,1761.3,1.1351]
[1745854614404,0.01123813,1761.2,1761.1,2.06404]
[1745854614603,9.437,1761.0,1759.4,3.2078]
[1745854614804,3.2078,1759.8,1759.3,5.119]
[1745854614999,1.13628,1759.6,1759.4,40.8]
[1745854615199,2.37122392,1759.5,1759.4,40.8]
[1745854615499,2.37122392,1759.5,1759.4,45.919]
[1745854615806,0.43552392,1759.5,1759.4,47.05535]
[1745854616007,1.13611,1759.8,1759.5,1.13624]
[1745854616206,0.43565805,1759.7,1759.6,1.13622]
[1745854616400,3.50751805,1759.7,1759.4,47.05531]
[1745854616599,0.43565805,1759.6,1759.5,1.13628]
[1745854616800,0.43565805,1759.6,1759.5,5.12]
[1745854617103,2.37135903,1759.6,1759.5,6.25628]
[1745854617303,3.50757903,1759.6,1759.5,5.12]
[1745854617498,2.37135903,1759.6,1759.5,5.12]
[1745854618006,3.50757903,1759.6,1759.5,5.12]
[1745854618409,2.37135903,1759.6,1759.5,6.25628]
[1745854618704,3.5077708,1759.6,1759.5,5.12]
[1745854619009,6.7155708,1759.6,1759.5,5.12]
[1745854619804,1.13628,1759.5,1759.4,40.8]
[1745854620004,3.4646308,1759.5,1759.4,45.92]
[1745854621106,3.4646308,1759.5,1759.4,5.12]
[1745854621308,3.4646308,1759.5,1759.4,6.25635]
[1745854621615,3.4646308,1759.5,1759.4,5.12]
[1745854621906,1.1365,1759.2,1759.1,5.12]
[1745854622106,1.57259453,1759.2,1759.1,45.92]
[1745854622310,4.78039453,1759.2,1759.1,45.92]
[1745854622717,3.64389453,1759.2,1759.1,45.92]
[1745854622919,0.43609453,1759.2,1759.1,47.05654]
[1745854623122,2.50219453,1759.2,1759.1,47.05654]
[1745854623305,3.63867453,1759.2,1759.1,45.92]
[1745854623619,6.84647453,1759.2,1759.1,45.92]
[1745854623814,0.43609453,1759.2,1759.1,47.05654]
[1745854624110,2.0907,1760.1,1759.2,2.8412]
[1745854624308,0.43583237,1760.0,1759.9,1.13601]
[1745854624507,1.13596,1760.0,1759.9,6.25701]
[1745854624713,1.57227742,1760.0,1759.9,6.25701]
[1745854625112,1.9025,1760.1,1760.0,1.13596]
[1745854625417,0.43624793,1760.1,1760.0,1.13596]
[1745854625612,8.36293922,1760.5,1760.3,1.13572]
[1745854625812,7.22724922,1760.5,1760.4,3.043]
[1745854626017,7.22724922,1760.5,1760.4,43.843]
[1745854626913,7.22724922,1760.5,1760.4,42.7073]
[1745854627109,8.36288922,1760.5,1760.4,42.7073]
[1745854627428,8.36288922,1760.5,1760.4,40.8]
[1745854627429,12.00721893,1760.5,1760.4,40.8]
[1745854627816,12.00729136,1760.5,1760.4,40.8]
[1745854628715,12.00729136,1760.5,1760.4,45.921]
[1745854628910,8.36288922,1760.5,1760.4,45.921]
[1745854629112,1.13564,1760.5,1760.4,45.921]
[1745854629417,1.57245778,1760.5,1760.4,45.921]
[1745854629616,0.43681778,1760.5,1760.4,47.0567]
[1745854629817,1.5724989,1760.5,1760.4,47.8682]
[1745854630012,3.5878989,1760.5,1760.4,47.8682]
[1745854630212,0.43675513,1760.5,1760.4,49.0039]
[1745854630416,0.43684481,1760.5,1760.4,49.0039]
[1745854630817,3.2078,1760.7,1760.5,1.13563]
[1745854631016,3.58783398,1760.6,1760.5,1.9472]
[1745854631218,0.43686398,1760.6,1760.5,3.08284]
[1745854631416,3.2078,1760.9,1760.5,1.9472]
[1745854631616,0.43691815,1760.8,1760.7,1.13551]
[1745854631817,1.13533,1761.0,1760.8,1.13544]
[1745854632110,1.13533,1761.0,1760.9,7.0672]
[1745854632316,1.57240507,1761.0,1760.9,7.0672]
[1745854632620,3.1507,1761.1,1760.9,8.20258]
[1745854632821,1.13532,1761.0,1760.9,8.20258]
[1745854633121,3.02942,1761.0,1760.9,8.20258]
[1745854633320,1.8941,1761.0,1760.9,8.20258]
[1745854633714,4.35427813,1761.2,1761.0,1.13532]
[1745854633918,1.13525,1761.1,1761.0,1.9675]
[1745854634220,3.02935,1761.1,1760.9,6.25533]
[1745854634728,1.13532,1761.0,1760.9,5.12]
[1745854635020,1.13544,1760.8,1760.7,5.12]
[1745854635229,4.7803963,1760.8,1760.7,5.12]
[1745854635415,6.6744963,1760.8,1760.7,5.12]
[1745854635615,6.6744963,1760.8,1760.7,6.25551]
[1745854635817,1.8941,1760.8,1760.7,6.25551]
[1745854636023,1.13544,1760.8,1760.7,5.12]
[1745854636213,1.13557,1760.6,1760.5,63.752]
[1745854636426,1.13557,1760.6,1760.5,68.872]
[1745854636923,2.0261,1760.7,1760.5,68.872]
[1745854636924,3.16164,1760.7,1760.5,68.872]
[1745854637219,2.0261,1760.7,1760.6,3.08757]
[1745854637424,1.13546,1760.8,1760.7,1.13551]
[1745854637922,1.13551,1760.7,1760.6,3.08752]
[1745854638223,1.1355,1760.8,1760.7,1.1355]
[1745854638423,3.1616,1760.8,1760.7,1.1355]
[1745854638617,2.0261,1760.8,1760.7,1.13551]
[1745854638820,1.13539,1760.9,1760.8,1.13541]
[1745854639525,3.21903813,1761.2,1760.7,2.83872]
[1745854639821,6.38947813,1761.2,1761.1,1.13525]
[1745854640025,6.38947813,1761.2,1761.1,6.25425]
[1745854640225,3.21903813,1761.2,1761.1,6.25425]
[1745854640820,0.01123813,1761.2,1761.1,6.25425]
[1745854641121,1.14642813,1761.2,1761.1,7.1355]
[1745854641329,2.04643813,1761.2,1761.1,6.25425]
[1745854641527,0.01123813,1761.2,1761.1,6.25425]
[1745854642220,1.14642813,1761.2,1761.1,5.119]
[1745854642426,1.89963813,1761.2,1761.1,6.25425]
[1745854642618,3.03482813,1761.2,1761.1,5.119]
[1745854643029,3.03482813,1761.2,1761.1,6.25425]
[1745854643328,0.01123813,1761.2,1761.1,6.25425]
[1745854646523,2.0548,1761.6,1761.4,1.13506]
[1745854646732,3.15078,1761.6,1761.5,8.17719]
[1745854647035,8.68670042,1761.7,1761.6,1.13493]
[1745854647323,8.68670042,1761.7,1761.5,47.8422]
[1745854647324,1.13493,1761.6,1761.5,48.97719]
[1745854647530,9.82161042,1761.7,1761.6,1.13493]
[1745854647723,9.82161042,1761.7,1761.5,47.8422]
[1745854647922,1.13493,1761.6,1761.5,47.8422]
[1745854648124,2.0888,1761.6,1761.5,48.97719]
[1745854648327,5.47890042,1761.7,1761.6,1.13493]
[1745854648628,7.22724922,1761.9,1761.8,1.1348]
[1745854648930,7.22724922,1761.9,1761.8,4.3426]
[1745854649131,2.0888,1762.2,1762.1,1.13461]
[1745854649322,7.22724922,1762.4,1762.1,7.77852]
[1745854649518,1.29338777,1762.4,1762.3,1.13448]
[1745854649724,1.29338777,1762.4,1762.2,5.2143]
[1745854649935,1.29338777,1762.4,1762.3,1.13448]
[1745854650429,1.29338777,1762.4,1762.3,4.34228]
[1745854650627,1.29338777,1762.4,1762.3,41.93448]
[1745854650829,2.42779777,1762.4,1762.3,40.8]
[1745854651021,9.50118777,1762.4,1761.9,4.941]
[1745854651227,1.13467,1762.0,1761.9,4.941]
[1745854651528,3.2078,1762.1,1761.9,4.941]
[1745854651831,3.07907,1762.0,1761.9,4.941]
[1745854652028,3.07907,1762.0,1761.9,45.741]
[1745854652333,3.07907,1762.0,1761.9,4.941]
[1745854653130,1.9444,1762.0,1761.9,6.07574]
[1745854653318,3.07907,1762.0,1761.9,4.941]
[1745854654424,3.51671861,1762.0,1761.9,4.941]
[1745854655031,3.51668414,1762.0,1761.9,4.941]
[1745854655231,1.9444,1762.0,1761.9,6.07574]
[1745854655526,1.13463,1762.1,1762.0,1.13467]
[1745854655731,1.13463,1762.1,1762.0,1.932]
[1745854656130,1.13467,1762.0,1761.9,6.07568]
[1745854656334,1.13467,1762.0,1761.9,4.941]
[1745854656628,3.2078,1762.1,1762.0,1.13467]
[1745854656833,1.13456,1762.2,1762.1,1.1346]
[1745854657034,5.2891,1762.3,1762.0,1.932]
[1745854657332,3.21582,1762.3,1762.2,1.13454]
[1745854657536,15.121,1762.2,1760.9,3.2078]
[1745854657723,1.1354,1760.9,1760.6,1.13554]
[1745854658029,3.2078,1761.0,1760.6,2.0896]
[1745854658233,3.2078,1760.8,1760.7,40.8]
[1745854658421,3.09181,1760.9,1760.7,40.8]
[1745854658626,1.9564,1760.9,1760.8,4.94]
[1745854658826,1.9564,1760.9,1760.7,44.02509]
[1745854659027,3.2078,1761.6,1760.9,1.13538]
[1745854659228,1.9564,1761.6,1761.5,1.13499]
[1745854659439,2.0343,1761.9,1761.5,4.94]
[1745854659739,3.52944145,1761.8,1761.6,4.94]
[1745854660036,6.29904,1761.8,1761.7,40.8]
[1745854660236,6.73722651,1761.8,1761.7,40.8]
[1745854660734,11.73722651,1761.8,1761.7,45.74]
[1745854660936,13.75442651,1761.8,1761.7,45.74]
[1745854661244,12.55642651,1761.8,1761.7,45.74]
[1745854661429,12.5566928,1761.8,1761.7,45.74]
[1745854662137,8.7546928,1761.8,1761.7,45.74]
[1745854662531,13.7546928,1761.8,1761.7,4.94]
[1745854662830,8.7546928,1761.8,1761.7,4.94]
[1745854663235,12.5566928,1761.8,1761.7,4.94]
[1745854664032,12.5566928,1761.8,1761.7,6.07486]
[1745854664340,8.7546928,1761.8,1761.7,4.94]
[1745854664636,6.7374928,1761.8,1761.7,4.94]
[1745854664839,5.6026528,1761.8,1761.7,6.07486]
[1745854665140,5.6026528,1761.8,1761.7,8.15656]
[1745854665338,5.60295503,1761.8,1761.7,8.15656]
[1745854666935,3.64655503,1761.8,1761.7,8.15656]
[1745854667236,3.64667683,1761.8,1761.7,8.15656]
[1745854667532,3.2078,1761.8,1761.7,8.15656]
[1745854667941,1.1348,1761.8,1761.7,7.0217]
[1745854668142,3.2078,1761.8,1761.7,8.15656]
[1745854668441,4.78167491,1761.8,1761.7,4.94]
[1745854668746,3.64687491,1761.8,1761.7,6.07486]
[1745854669135,2.46427491,1761.8,1761.7,6.07486]
[1745854669337,2.46442509,1761.8,1761.7,6.07486]
[1745854671035,2.0252,1761.8,1761.7,6.07486]
[1745854671543,0.43958464,1761.8,1761.7,6.07486]
[1745854672240,2.39988464,1761.8,1761.7,6.07486]
[1745854673346,6.7428483,1761.8,1761.7,4.94]
[1745854674146,10.5448483,1761.8,1761.7,4.94]
[1745854675446,10.54505429,1761.8,1761.7,4.94]
[1745854675641,10.54505429,1761.8,1761.1,3.9477]
[1745854675642,17.24729429,1761.8,1761.1,3.9477]
[1745854675842,1.13499,1761.5,1761.4,4.943]
[1745854676146,4.78294429,1761.5,1761.4,45.743]
[1745854676446,4.78294429,1761.5,1761.4,4.943]
[1745854676447,6.82504429,1761.5,1761.4,4.943]
[1745854676649,6.82504429,1761.5,1761.4,6.07806]
[1745854676942,5.69005429,1761.5,1761.4,4.943]
[1745854677136,5.69005429,1761.5,1761.4,6.07806]
[1745854677333,0.44015429,1761.5,1761.4,8.12876]
[1745854678444,2.48225429,1761.5,1761.4,8.12876]
[1745854678746,3.2062564,1761.5,1761.4,7.86017853]
[1745854679245,1.16410749,1761.5,1761.4,7.86017853]
[1745854680934,0.44010538,1761.5,1761.4,7.86017853]
[1745854681139,5.301,1761.8,1761.7,1.13486]
[1745854681343,6.87634203,1761.8,1761.4,9.83134]
[1745854681547,6.43586,1761.8,1761.7,1.13486]
[1745854681748,1.13486,1761.7,1761.6,2.0922]
[1745854681936,3.56691741,1761.7,1761.6,2.0922]
[1745854682141,2.43205741,1761.7,1761.6,3.22713]
[1745854682448,2.43210975,1761.7,1761.6,3.22713]
[1745854682951,0.44050975,1761.7,1761.6,3.22713]
[1745854683247,3.2078,1761.8,1761.7,1.13486]
[1745854683447,3.64836498,1761.8,1761.7,3.11826]